[Event "Titled Tuesday Blitz May 23 Early 2023"]
[White "Schmakel, Sam"]
[Black "Demchenko, Anton"]
[WhiteFideId "2039311"]
[BlackFideId "4160258"]
[WhiteElo "2356"]
[BlackElo "2545"]
[Result "0-1"]
[Round "06"]
[TimeControl "180+2"]
[Date "2023.05.23"]
[WhiteClock "0:00:02"]
[BlackClock "0:00:10"]

1. d4 {[%clk 0:03:00]}  Nf6 {[%clk 0:02:59]} 2. c4 {[%clk 0:03:01]}  d6 {[%clk 0:02:58]} 3. Nf3 {[%clk 0:03:00]}  Nc6 {[%clk 0:02:58]} 4. d5 {[%clk 0:02:59]}  Ne5 {[%clk 0:02:58]} 5. Nxe5 {[%clk 0:02:59]}  dxe5 {[%clk 0:02:59]} 6. Nc3 {[%clk 0:02:59]}  e6 {[%clk 0:03:00]} 7. e4 {[%clk 0:02:58]}  Bc5 {[%clk 0:03:00]} 8. Bd3 {[%clk 0:02:51]}  O-O {[%clk 0:03:00]} 9. O-O {[%clk 0:02:51]}  c6 {[%clk 0:03:00]} 10. dxc6 {[%clk 0:02:32]}  bxc6 {[%clk 0:02:59]} 11. Qe2 {[%clk 0:02:30]}  Bd4 {[%clk 0:02:57]} 12. Qc2 {[%clk 0:02:16]}  Bb7 {[%clk 0:02:55]} 13. Ne2 {[%clk 0:02:11]}  Nd7 {[%clk 0:02:29]} 14. Rd1 {[%clk 0:01:59]}  c5 {[%clk 0:02:23]} 15. Rb1 {[%clk 0:01:58]}  a5 {[%clk 0:02:22]} 16. Nxd4 {[%clk 0:01:46]}  exd4 {[%clk 0:02:22]} 17. f4 {[%clk 0:01:44]}  e5 {[%clk 0:02:21]} 18. f5 {[%clk 0:01:42]}  f6 {[%clk 0:02:20]} 19. g4 {[%clk 0:01:37]}  g5 {[%clk 0:02:16]} 20. h4 {[%clk 0:01:32]}  h6 {[%clk 0:02:11]} 21. Kf2 {[%clk 0:01:25]}  Kg7 {[%clk 0:02:07]} 22. Rh1 {[%clk 0:01:25]}  Rh8 {[%clk 0:02:05]} 23. Bd2 {[%clk 0:01:25]}  Nb8 {[%clk 0:01:29]} 24. Rh3 {[%clk 0:01:23]}  Nc6 {[%clk 0:01:14]} 25. a3 {[%clk 0:01:18]}  Qe7 {[%clk 0:01:02]} 26. Rbh1 {[%clk 0:01:16]}  Nd8 {[%clk 0:00:53]} 27. hxg5 {[%clk 0:00:45]}  fxg5 {[%clk 0:00:53]} 28. Qd1 {[%clk 0:00:45]}  Nf7 {[%clk 0:00:50]} 29. Rh5 {[%clk 0:00:40]}  Qf6 {[%clk 0:00:49]} 30. Qg1 {[%clk 0:00:35]}  a4 {[%clk 0:00:45]} 31. Qh2 {[%clk 0:00:34]}  Bc6 {[%clk 0:00:43]} 32. Rb1 {[%clk 0:00:12]}  Rab8 {[%clk 0:00:43]} 33. Ke2 {[%clk 0:00:12]}  Rb3 {[%clk 0:00:41]} 34. Rh3 {[%clk 0:00:09]}  Rhb8 {[%clk 0:00:37]} 35. Bc2 {[%clk 0:00:07]}  Rxb2 {[%clk 0:00:32]} 36. Rxb2 {[%clk 0:00:06]}  Rxb2 {[%clk 0:00:33]} 37. Kd1 {[%clk 0:00:06]}  Rxc2 {[%clk 0:00:26]} 38. Kxc2 {[%clk 0:00:07]}  Bxe4+ {[%clk 0:00:27]} 39. Kd1 {[%clk 0:00:07]}  Qb6 {[%clk 0:00:27]} 40. Qe2 {[%clk 0:00:05]}  Qb1+ {[%clk 0:00:23]} 41. Bc1 {[%clk 0:00:06]}  Qb7 {[%clk 0:00:13]} 42. Qf2 {[%clk 0:00:03]}  Kf6 {[%clk 0:00:11]} 43. Rh2 {[%clk 0:00:03]}  Bd3 {[%clk 0:00:10]} 44. Qg3 {[%clk 0:00:03]}  Qe4 {[%clk 0:00:10]} 45. Rd2 {[%clk 0:00:02]}  Bxc4 {[%clk 0:00:09]} 46. Rf2 {[%clk 0:00:02]}  Bb3+ {[%clk 0:00:09]} 47. Kd2 {[%clk 0:00:02]}  c4 {[%clk 0:00:10]} 48. Bb2 {[%clk 0:00:02]}  Qc2+ {[%clk 0:00:09]} 49. Ke1 {[%clk 0:00:02]}  Qd1# {[%clk 0:00:10]} 0-1


[Site "https://www.chess.com"]

[Event "Titled Tuesday Blitz May 23 Early 2023"]
[White "Papasimakopoulos, Alexandros"]
[Black "Zhigalko, Sergei"]
[WhiteFideId "4244125"]
[BlackFideId "13502956"]
[WhiteElo "2359"]
[BlackElo "2626"]
[Result "1-0"]
[Round "06"]
[TimeControl "180+2"]
[Date "2023.05.23"]
[WhiteClock "0:00:53"]
[BlackClock "0:00:00"]

1. d4 {[%clk 0:03:00]}  Nf6 {[%clk 0:03:00]} 2. c4 {[%clk 0:03:01]}  e6 {[%clk 0:03:00]} 3. Nc3 {[%clk 0:03:02]}  Bb4 {[%clk 0:02:59]} 4. e3 {[%clk 0:03:02]}  O-O {[%clk 0:03:00]} 5. Bd2 {[%clk 0:03:01]}  b6 {[%clk 0:02:59]} 6. Bd3 {[%clk 0:02:56]}  Bb7 {[%clk 0:02:59]} 7. Nf3 {[%clk 0:02:57]}  d5 {[%clk 0:02:59]} 8. cxd5 {[%clk 0:02:56]}  exd5 {[%clk 0:02:59]} 9. O-O {[%clk 0:02:56]}  Bd6 {[%clk 0:02:46]} 10. Ne5 {[%clk 0:02:51]}  c5 {[%clk 0:02:46]} 11. f4 {[%clk 0:02:52]}  Nc6 {[%clk 0:02:46]} 12. Be1 {[%clk 0:02:36]}  cxd4 {[%clk 0:02:46]} 13. exd4 {[%clk 0:02:36]}  Nxd4 {[%clk 0:02:45]} 14. Bh4 {[%clk 0:02:37]}  Ne6 {[%clk 0:02:22]} 15. Kh1 {[%clk 0:02:22]}  Be7 {[%clk 0:01:50]} 16. Bc2 {[%clk 0:02:07]}  Rc8 {[%clk 0:01:41]} 17. Qd3 {[%clk 0:02:02]}  Ne4 {[%clk 0:01:40]} 18. Bxe7 {[%clk 0:01:56]}  Qxe7 {[%clk 0:01:40]} 19. Nxd5 {[%clk 0:01:48]}  Bxd5 {[%clk 0:01:41]} 20. Qxd5 {[%clk 0:01:48]}  Nf6 {[%clk 0:01:02]} 21. Qd2 {[%clk 0:01:42]}  Rfd8 {[%clk 0:00:56]} 22. Qf2 {[%clk 0:01:42]}  Qc5 {[%clk 0:00:42]} 23. Bf5 {[%clk 0:01:36]}  Qxf2 {[%clk 0:00:22]} 24. Rxf2 {[%clk 0:01:36]}  Rd6 {[%clk 0:00:22]} 25. g3 {[%clk 0:01:37]}  g6 {[%clk 0:00:15]} 26. Bxe6 {[%clk 0:01:37]}  Rxe6 {[%clk 0:00:15]} 27. Rd1 {[%clk 0:01:36]}  Ne4 {[%clk 0:00:12]} 28. Re2 {[%clk 0:01:35]}  Nc5 {[%clk 0:00:07]} 29. Rc2 {[%clk 0:01:34]}  Rce8 {[%clk 0:00:05]} 30. b4 {[%clk 0:01:32]}  Ne4 {[%clk 0:00:05]} 31. Rd7 {[%clk 0:01:30]}  f6 {[%clk 0:00:03]} 32. Nc6 {[%clk 0:01:08]}  a6 {[%clk 0:00:03]} 33. Rc7 {[%clk 0:01:03]}  Rd6 {[%clk 0:00:02]} 34. Kg2 {[%clk 0:00:56]}  h5 {[%clk 0:00:02]} 35. Re2 {[%clk 0:00:55]}  g5 {[%clk 0:00:02]} 36. Ne7+ {[%clk 0:00:54]}  Kf8 {[%clk 0:00:02]} 37. Rxe4 {[%clk 0:00:54]}  Rd2+ {[%clk 0:00:02]} 38. Kf3 {[%clk 0:00:53]}  g4+ {[%clk 0:00:02]} 39. Ke3 {[%clk 0:00:53]}  Rxa2 {[%clk 0:00:00]} 40. Ng6+ {[%clk 0:00:53]} 1-0


[Site "https://www.chess.com"]

[Event "Titled Tuesday Blitz May 23 Early 2023"]
[White "Zakhartsov, Vladimir"]
[Black "Ashraf, Artin"]
[WhiteFideId "4145097"]
[BlackFideId "22514805"]
[WhiteElo "2495"]
[BlackElo "2188"]
[Result "1-0"]
[Round "06"]
[TimeControl "180+2"]
[Date "2023.05.23"]
[WhiteClock "0:00:10"]
[BlackClock "0:00:02"]

1. e4 {[%clk 0:02:58]}  c6 {[%clk 0:02:58]} 2. d3 {[%clk 0:02:54]}  d5 {[%clk 0:02:59]} 3. Nd2 {[%clk 0:02:55]}  Nf6 {[%clk 0:02:45]} 4. Ngf3 {[%clk 0:02:54]}  Bg4 {[%clk 0:02:44]} 5. h3 {[%clk 0:02:52]}  Bh5 {[%clk 0:02:44]} 6. e5 {[%clk 0:02:50]}  Nfd7 {[%clk 0:02:41]} 7. Be2 {[%clk 0:02:36]}  e6 {[%clk 0:02:41]} 8. O-O {[%clk 0:02:36]}  c5 {[%clk 0:02:39]} 9. c3 {[%clk 0:02:31]}  Nc6 {[%clk 0:02:37]} 10. d4 {[%clk 0:02:32]}  Qb6 {[%clk 0:02:31]} 11. Nb3 {[%clk 0:02:22]}  Be7 {[%clk 0:02:21]} 12. a4 {[%clk 0:02:11]}  c4 {[%clk 0:01:58]} 13. Nbd2 {[%clk 0:02:09]}  O-O {[%clk 0:01:59]} 14. Re1 {[%clk 0:02:09]}  a6 {[%clk 0:01:56]} 15. b4 {[%clk 0:01:57]}  cxb3 {[%clk 0:01:29]} 16. Qxb3 {[%clk 0:01:51]}  Na5 {[%clk 0:01:26]} 17. Qxb6 {[%clk 0:01:20]}  Nxb6 {[%clk 0:01:27]} 18. Bb2 {[%clk 0:01:17]}  Bg6 {[%clk 0:01:20]} 19. Rec1 {[%clk 0:01:16]}  Rfc8 {[%clk 0:01:19]} 20. g4 {[%clk 0:01:09]}  Rc7 {[%clk 0:01:10]} 21. h4 {[%clk 0:01:08]}  h6 {[%clk 0:01:09]} 22. h5 {[%clk 0:01:08]}  Bh7 {[%clk 0:01:08]} 23. Kg2 {[%clk 0:01:08]}  Rac8 {[%clk 0:01:05]} 24. Kg3 {[%clk 0:01:08]}  Rc6 {[%clk 0:00:46]} 25. Ra2 {[%clk 0:01:01]}  Nbc4 {[%clk 0:00:39]} 26. Nxc4 {[%clk 0:01:00]}  Nxc4 {[%clk 0:00:33]} 27. Bxc4 {[%clk 0:00:58]}  Rxc4 {[%clk 0:00:27]} 28. Nd2 {[%clk 0:00:58]}  R4c6 {[%clk 0:00:27]} 29. a5 {[%clk 0:00:52]}  b5 {[%clk 0:00:25]} 30. axb6 {[%clk 0:00:52]}  Rxb6 {[%clk 0:00:25]} 31. Ba3 {[%clk 0:00:51]}  Bxa3 {[%clk 0:00:21]} 32. Rxa3 {[%clk 0:00:51]}  Bd3 {[%clk 0:00:21]} 33. Nb3 {[%clk 0:00:48]}  Bc4 {[%clk 0:00:19]} 34. Nc5 {[%clk 0:00:47]}  Rb2 {[%clk 0:00:19]} 35. f3 {[%clk 0:00:32]}  Rc6 {[%clk 0:00:14]} 36. Kf4 {[%clk 0:00:31]}  Rf2 {[%clk 0:00:11]} 37. Rca1 {[%clk 0:00:20]}  Rb6 {[%clk 0:00:10]} 38. Nxa6 {[%clk 0:00:17]}  Bxa6 {[%clk 0:00:08]} 39. Rxa6 {[%clk 0:00:17]}  Rb3 {[%clk 0:00:08]} 40. Rc6 {[%clk 0:00:15]}  Kh7 {[%clk 0:00:05]} 41. Ra7 {[%clk 0:00:13]}  Rb1 {[%clk 0:00:03]} 42. Rxf7 {[%clk 0:00:12]}  Rbf1 {[%clk 0:00:02]} 43. Kg3 {[%clk 0:00:11]}  Kg8 {[%clk 0:00:03]} 44. Rf4 {[%clk 0:00:10]}  Re2 {[%clk 0:00:02]} 45. Rc8+ {[%clk 0:00:10]}  Kh7 {[%clk 0:00:02]} 46. Rff8 {[%clk 0:00:10]}  Rg1+ {[%clk 0:00:02]} 47. Kf4 {[%clk 0:00:09]}  g5+ {[%clk 0:00:02]} 48. hxg6+ {[%clk 0:00:09]}  Kg7 {[%clk 0:00:02]} 49. Rf7+ {[%clk 0:00:09]}  Kxg6 {[%clk 0:00:02]} 50. Rf6+ {[%clk 0:00:09]}  Kg7 {[%clk 0:00:02]} 51. Rc7+ {[%clk 0:00:10]}  Kg8 {[%clk 0:00:02]} 52. Rxe6 {[%clk 0:00:10]}  Rf2 {[%clk 0:00:02]} 53. Re8# {[%clk 0:00:10]} 1-0


[Site "https://www.chess.com"]

[Event "Titled Tuesday Blitz May 23 Early 2023"]
[White "Narayanan, Srinath"]
[Black "Dimitrov, Atanas"]
[WhiteFideId "5018420"]
[BlackFideId "2901315"]
[WhiteElo "2438"]
[BlackElo "2714"]
[Result "1-0"]
[Round "06"]
[TimeControl "180+2"]
[Date "2023.05.23"]
[WhiteClock "0:02:46"]
[BlackClock "0:01:52"]

1. Nf3 {[%clk 0:03:00]}  d5 {[%clk 0:02:59]} 2. e3 {[%clk 0:03:00]}  Nf6 {[%clk 0:02:59]} 3. c4 {[%clk 0:03:01]}  c6 {[%clk 0:02:57]} 4. d4 {[%clk 0:03:00]}  g6 {[%clk 0:02:57]} 5. Nc3 {[%clk 0:03:00]}  Bg7 {[%clk 0:02:57]} 6. cxd5 {[%clk 0:02:59]}  cxd5 {[%clk 0:02:57]} 7. h3 {[%clk 0:03:00]}  O-O {[%clk 0:02:58]} 8. Bd3 {[%clk 0:03:00]}  Nc6 {[%clk 0:02:58]} 9. O-O {[%clk 0:03:01]}  b6 {[%clk 0:02:56]} 10. b3 {[%clk 0:03:01]}  Bb7 {[%clk 0:02:55]} 11. Ba3 {[%clk 0:03:02]}  Rc8 {[%clk 0:02:54]} 12. Rc1 {[%clk 0:03:01]}  Re8 {[%clk 0:02:50]} 13. Qe2 {[%clk 0:03:01]}  e5 {[%clk 0:02:32]} 14. dxe5 {[%clk 0:02:59]}  Nxe5 {[%clk 0:02:32]} 15. Nxe5 {[%clk 0:03:00]}  Rxe5 {[%clk 0:02:33]} 16. Nb5 {[%clk 0:03:01]}  Rxc1 {[%clk 0:02:29]} 17. Rxc1 {[%clk 0:03:01]}  a6 {[%clk 0:02:29]} 18. Nd6 {[%clk 0:03:01]}  Re7 {[%clk 0:02:11]} 19. Bxa6 {[%clk 0:02:49]}  Bxa6 {[%clk 0:02:09]} 20. Qxa6 {[%clk 0:02:50]}  Rc7 {[%clk 0:01:59]} 21. Rxc7 {[%clk 0:02:48]}  Qxc7 {[%clk 0:02:00]} 22. Qa8+ {[%clk 0:02:48]}  Bf8 {[%clk 0:01:52]} 23. Nb5 {[%clk 0:02:46]} 1-0


[Site "https://www.chess.com"]

[Event "Titled Tuesday Blitz May 23 Early 2023"]
[White "Volkov, Maksim"]
[Black "Fridman, Daniel"]
[WhiteFideId "54123070"]
[BlackFideId "11600454"]
[WhiteElo "2297"]
[BlackElo "2525"]
[Result "0-1"]
[Round "06"]
[TimeControl "180+2"]
[Date "2023.05.23"]
[WhiteClock "0:02:10"]
[BlackClock "0:01:59"]

1. d4 {[%clk 0:03:00]}  d5 {[%clk 0:02:59]} 2. c4 {[%clk 0:03:01]}  e6 {[%clk 0:02:59]} 3. Nf3 {[%clk 0:03:01]}  Nf6 {[%clk 0:02:59]} 4. g3 {[%clk 0:03:02]}  Bb4+ {[%clk 0:02:58]} 5. Bd2 {[%clk 0:03:01]}  a5 {[%clk 0:02:58]} 6. Bg2 {[%clk 0:03:01]}  O-O {[%clk 0:02:58]} 7. Qc2 {[%clk 0:03:01]}  c5 {[%clk 0:02:58]} 8. dxc5 {[%clk 0:03:01]}  d4 {[%clk 0:02:58]} 9. Bxb4 {[%clk 0:03:01]}  axb4 {[%clk 0:02:58]} 10. Ne5 {[%clk 0:03:01]}  Qa5 {[%clk 0:02:44]} 11. Nd3 {[%clk 0:03:01]}  b3+ {[%clk 0:02:27]} 12. Qd2 {[%clk 0:03:01]}  Qxa2 {[%clk 0:02:28]} 13. Rxa2 {[%clk 0:02:28]}  bxa2 {[%clk 0:02:27]} 14. Na3 {[%clk 0:02:29]}  a1=Q+ {[%clk 0:02:18]} 15. Nc1 {[%clk 0:02:16]}  Rxa3 {[%clk 0:02:03]} 16. bxa3 {[%clk 0:02:15]}  Qxa3 {[%clk 0:01:59]} 17. O-O {[%clk 0:02:10]}  Qxc5 {[%clk 0:01:59]} 0-1


[Site "https://www.chess.com"]

[Event "Titled Tuesday Blitz May 23 Early 2023"]
[White "Drygalov, Sergey"]
[Black "Weishaeutel, Moritz"]
[WhiteFideId "24171743"]
[BlackFideId "12967300"]
[WhiteElo "2533"]
[BlackElo "2301"]
[Result "0-1"]
[Round "06"]
[TimeControl "180+2"]
[Date "2023.05.23"]
[WhiteClock "0:00:04"]
[BlackClock "0:00:11"]

1. d4 {[%clk 0:02:52]}  Nf6 {[%clk 0:02:59]} 2. c4 {[%clk 0:02:48]}  c5 {[%clk 0:03:00]} 3. d5 {[%clk 0:02:49]}  b5 {[%clk 0:03:00]} 4. cxb5 {[%clk 0:02:49]}  a6 {[%clk 0:03:01]} 5. bxa6 {[%clk 0:02:50]}  g6 {[%clk 0:03:01]} 6. Nc3 {[%clk 0:02:51]}  Bg7 {[%clk 0:03:02]} 7. e4 {[%clk 0:02:51]}  O-O {[%clk 0:03:03]} 8. Be2 {[%clk 0:02:51]}  Qa5 {[%clk 0:02:55]} 9. Bd2 {[%clk 0:02:51]}  Bxa6 {[%clk 0:02:52]} 10. e5 {[%clk 0:02:50]}  Ne8 {[%clk 0:02:52]} 11. Nf3 {[%clk 0:02:50]}  d6 {[%clk 0:02:50]} 12. e6 {[%clk 0:02:46]}  fxe6 {[%clk 0:02:41]} 13. dxe6 {[%clk 0:02:46]}  Nc7 {[%clk 0:02:35]} 14. O-O {[%clk 0:02:44]}  Bxe2 {[%clk 0:02:28]} 15. Qxe2 {[%clk 0:02:43]}  Qa6 {[%clk 0:02:29]} 16. Qe4 {[%clk 0:02:40]}  Qc6 {[%clk 0:02:22]} 17. Qh4 {[%clk 0:02:33]}  Qe8 {[%clk 0:01:41]} 18. Rfe1 {[%clk 0:02:24]}  Nc6 {[%clk 0:01:38]} 19. Ng5 {[%clk 0:02:03]}  h6 {[%clk 0:01:35]} 20. Nf7 {[%clk 0:01:49]}  h5 {[%clk 0:01:34]} 21. Ng5 {[%clk 0:01:31]}  Nd4 {[%clk 0:01:31]} 22. Qe4 {[%clk 0:01:30]}  Rf5 {[%clk 0:01:28]} 23. Rac1 {[%clk 0:00:59]}  Rb8 {[%clk 0:01:23]} 24. b3 {[%clk 0:00:57]}  Bh6 {[%clk 0:01:13]} 25. h4 {[%clk 0:00:56]}  Ncxe6 {[%clk 0:00:59]} 26. f4 {[%clk 0:00:41]}  Bxg5 {[%clk 0:00:52]} 27. hxg5 {[%clk 0:00:39]}  Qf7 {[%clk 0:00:51]} 28. Nd5 {[%clk 0:00:38]}  Rf8 {[%clk 0:00:43]} 29. g3 {[%clk 0:00:22]}  Kh7 {[%clk 0:00:34]} 30. Ne3 {[%clk 0:00:21]}  Rxg5 {[%clk 0:00:21]} 31. fxg5 {[%clk 0:00:19]}  Qf2+ {[%clk 0:00:22]} 32. Kh1 {[%clk 0:00:17]}  Qxd2 {[%clk 0:00:20]} 33. Rcd1 {[%clk 0:00:13]}  Qxa2 {[%clk 0:00:18]} 34. Ng2 {[%clk 0:00:12]}  Qxb3 {[%clk 0:00:17]} 35. Nh4 {[%clk 0:00:08]}  Rg8 {[%clk 0:00:14]} 36. Re3 {[%clk 0:00:07]}  Qxd1+ {[%clk 0:00:14]} 37. Kh2 {[%clk 0:00:06]}  Qg4 {[%clk 0:00:13]} 38. Qd5 {[%clk 0:00:04]}  Qxg5 {[%clk 0:00:13]} 39. Qxg5 {[%clk 0:00:04]}  Nxg5 {[%clk 0:00:13]} 40. Rxe7+ {[%clk 0:00:05]}  Rg7 {[%clk 0:00:14]} 41. Re8 {[%clk 0:00:05]}  Ndf3+ {[%clk 0:00:14]} 42. Nxf3 {[%clk 0:00:05]}  Nxf3+ {[%clk 0:00:15]} 43. Kg2 {[%clk 0:00:06]}  Ne5 {[%clk 0:00:16]} 44. Kf2 {[%clk 0:00:06]}  Rc7 {[%clk 0:00:15]} 45. Ke3 {[%clk 0:00:06]}  c4 {[%clk 0:00:15]} 46. Kd2 {[%clk 0:00:07]}  c3+ {[%clk 0:00:16]} 47. Kc2 {[%clk 0:00:07]}  g5 {[%clk 0:00:16]} 48. Re6 {[%clk 0:00:07]}  h4 {[%clk 0:00:16]} 49. gxh4 {[%clk 0:00:07]}  gxh4 {[%clk 0:00:17]} 50. Rxd6 {[%clk 0:00:08]}  Ng4 {[%clk 0:00:13]} 51. Rd4 {[%clk 0:00:07]}  Ne3+ {[%clk 0:00:13]} 52. Kc1 {[%clk 0:00:07]}  Nf5 {[%clk 0:00:13]} 53. Rg4 {[%clk 0:00:05]}  Kh6 {[%clk 0:00:12]} 54. Kc2 {[%clk 0:00:05]}  Kh5 {[%clk 0:00:12]} 55. Rg8 {[%clk 0:00:05]}  h3 {[%clk 0:00:11]} 56. Rg1 {[%clk 0:00:04]}  Kh4 {[%clk 0:00:11]} 57. Rf1 {[%clk 0:00:04]}  Ne3+ {[%clk 0:00:11]} 58. Kd3 {[%clk 0:00:04]}  Nxf1 {[%clk 0:00:11]} 0-1


[Site "https://www.chess.com"]

[Event "Titled Tuesday Blitz May 23 Early 2023"]
[White "Beerdsen, Thomas"]
[Black "Kleiman, Jake"]
[WhiteFideId "1030108"]
[BlackFideId "2020041"]
[WhiteElo "2549"]
[BlackElo "2627"]
[Result "1-0"]
[Round "06"]
[TimeControl "180+2"]
[Date "2023.05.23"]
[WhiteClock "0:01:30"]
[BlackClock "0:00:10"]

1. e4 {[%clk 0:03:00]}  e5 {[%clk 0:02:58]} 2. Bc4 {[%clk 0:03:00]}  Nf6 {[%clk 0:02:57]} 3. d3 {[%clk 0:03:01]}  Nc6 {[%clk 0:02:58]} 4. Nc3 {[%clk 0:03:00]}  Na5 {[%clk 0:02:58]} 5. Bb3 {[%clk 0:02:58]}  Be7 {[%clk 0:02:57]} 6. Nf3 {[%clk 0:02:58]}  d6 {[%clk 0:02:57]} 7. h3 {[%clk 0:02:58]}  O-O {[%clk 0:02:57]} 8. O-O {[%clk 0:02:58]}  c6 {[%clk 0:02:58]} 9. Re1 {[%clk 0:02:58]}  h6 {[%clk 0:02:57]} 10. d4 {[%clk 0:02:58]}  Nxb3 {[%clk 0:02:56]} 11. axb3 {[%clk 0:02:58]}  Qc7 {[%clk 0:02:52]} 12. Be3 {[%clk 0:02:55]}  a6 {[%clk 0:02:49]} 13. Qd2 {[%clk 0:02:47]}  b5 {[%clk 0:02:43]} 14. Bxh6 {[%clk 0:02:45]}  gxh6 {[%clk 0:02:37]} 15. Qxh6 {[%clk 0:02:46]}  Nh7 {[%clk 0:02:37]} 16. Re3 {[%clk 0:02:42]}  Kh8 {[%clk 0:02:13]} 17. Ne2 {[%clk 0:02:13]}  Rg8 {[%clk 0:02:07]} 18. Ng3 {[%clk 0:02:14]}  Bf6 {[%clk 0:01:32]} 19. dxe5 {[%clk 0:02:06]}  dxe5 {[%clk 0:01:32]} 20. Nf5 {[%clk 0:01:57]}  Be6 {[%clk 0:01:15]} 21. g4 {[%clk 0:01:52]}  a5 {[%clk 0:01:02]} 22. Kh1 {[%clk 0:01:50]}  Rae8 {[%clk 0:00:43]} 23. Rg1 {[%clk 0:01:50]}  Bxf5 {[%clk 0:00:38]} 24. exf5 {[%clk 0:01:47]}  e4 {[%clk 0:00:34]} 25. g5 {[%clk 0:01:47]}  Bg7 {[%clk 0:00:33]} 26. Qh5 {[%clk 0:01:34]}  exf3 {[%clk 0:00:31]} 27. g6 {[%clk 0:01:33]}  fxg6 {[%clk 0:00:28]} 28. fxg6 {[%clk 0:01:31]}  Bd4 {[%clk 0:00:24]} 29. Rxe8 {[%clk 0:01:31]}  Rxe8 {[%clk 0:00:24]} 30. g7+ {[%clk 0:01:31]}  Bxg7 {[%clk 0:00:23]} 31. Qxe8+ {[%clk 0:01:32]}  Nf8 {[%clk 0:00:22]} 32. Qh5+ {[%clk 0:01:32]}  Kg8 {[%clk 0:00:22]} 33. Qxf3 {[%clk 0:01:33]}  Qd6 {[%clk 0:00:20]} 34. c3 {[%clk 0:01:33]}  Qe6 {[%clk 0:00:19]} 35. Rg4 {[%clk 0:01:27]}  Qxb3 {[%clk 0:00:17]} 36. Qxc6 {[%clk 0:01:27]}  a4 {[%clk 0:00:13]} 37. c4 {[%clk 0:01:28]}  bxc4 {[%clk 0:00:10]} 38. Qd5+ {[%clk 0:01:28]}  Kh8 {[%clk 0:00:10]} 39. Rh4+ {[%clk 0:01:28]}  Nh7 {[%clk 0:00:10]} 40. Qd8+ {[%clk 0:01:29]}  Bf8 {[%clk 0:00:10]} 41. Qxf8# {[%clk 0:01:30]} 1-0


[Site "https://www.chess.com"]

[Event "Titled Tuesday Blitz May 23 Early 2023"]
[White "Mahdavi, Reza"]
[Black "brm72"]
[WhiteFideId "12595926"]
[WhiteElo "2352"]
[BlackElo "2601"]
[Result "1-0"]
[Round "06"]
[TimeControl "180+2"]
[Date "2023.05.23"]
[WhiteClock "0:01:16"]
[BlackClock "0:00:55"]

1. e4 {[%clk 0:03:00]}  c5 {[%clk 0:03:00]} 2. Nf3 {[%clk 0:03:01]}  d6 {[%clk 0:03:00]} 3. d4 {[%clk 0:03:01]}  cxd4 {[%clk 0:03:01]} 4. Qxd4 {[%clk 0:03:01]}  Nc6 {[%clk 0:03:00]} 5. Bb5 {[%clk 0:03:02]}  Bd7 {[%clk 0:03:00]} 6. Bxc6 {[%clk 0:03:03]}  Bxc6 {[%clk 0:02:59]} 7. Nc3 {[%clk 0:03:04]}  Nf6 {[%clk 0:02:59]} 8. Bg5 {[%clk 0:03:04]}  e6 {[%clk 0:02:59]} 9. O-O-O {[%clk 0:03:05]}  Be7 {[%clk 0:03:00]} 10. Qd3 {[%clk 0:02:59]}  O-O {[%clk 0:02:56]} 11. Nd4 {[%clk 0:02:53]}  Qa5 {[%clk 0:02:48]} 12. h4 {[%clk 0:02:49]}  Rac8 {[%clk 0:02:42]} 13. f3 {[%clk 0:02:47]}  a6 {[%clk 0:02:32]} 14. Bd2 {[%clk 0:02:43]}  Qc7 {[%clk 0:02:13]} 15. g4 {[%clk 0:02:44]}  b5 {[%clk 0:02:08]} 16. g5 {[%clk 0:02:38]}  Nd7 {[%clk 0:01:57]} 17. a3 {[%clk 0:02:18]}  Ne5 {[%clk 0:01:49]} 18. Qe2 {[%clk 0:02:18]}  Nc4 {[%clk 0:01:48]} 19. Kb1 {[%clk 0:02:15]}  d5 {[%clk 0:01:31]} 20. Nxc6 {[%clk 0:02:09]}  Qxc6 {[%clk 0:01:27]} 21. exd5 {[%clk 0:02:09]}  Nxd2+ {[%clk 0:01:18]} 22. Rxd2 {[%clk 0:02:07]}  Qc7 {[%clk 0:01:18]} 23. dxe6 {[%clk 0:02:05]}  Bc5 {[%clk 0:01:09]} 24. Nd5 {[%clk 0:02:01]}  Qb7 {[%clk 0:01:07]} 25. e7 {[%clk 0:01:27]}  Rfe8 {[%clk 0:01:04]} 26. Nf6+ {[%clk 0:01:14]}  gxf6 {[%clk 0:01:03]} 27. gxf6 {[%clk 0:01:14]}  Kh8 {[%clk 0:01:00]} 28. Qg2 {[%clk 0:01:15]}  Rg8 {[%clk 0:00:55]} 29. Rd8 {[%clk 0:01:16]} 1-0


[Site "https://www.chess.com"]

[Event "Titled Tuesday Blitz May 23 Early 2023"]
[White "Kilic, Eray"]
[Black "Tsyhanchuk, Stanislav"]
[WhiteFideId "44517173"]
[BlackFideId "13505130"]
[WhiteElo "2328"]
[BlackElo "2173"]
[Result "1-0"]
[Round "06"]
[TimeControl "180+2"]
[Date "2023.05.23"]
[WhiteClock "0:00:34"]
[BlackClock "0:00:00"]

1. e4 {[%clk 0:03:00]}  c5 {[%clk 0:02:59]} 2. Nf3 {[%clk 0:03:00]}  d6 {[%clk 0:03:00]} 3. d4 {[%clk 0:03:01]}  cxd4 {[%clk 0:03:01]} 4. Nxd4 {[%clk 0:03:02]}  Nf6 {[%clk 0:03:01]} 5. Nc3 {[%clk 0:03:02]}  a6 {[%clk 0:03:02]} 6. Be3 {[%clk 0:02:57]}  e5 {[%clk 0:03:00]} 7. Nf3 {[%clk 0:02:58]}  Be7 {[%clk 0:02:59]} 8. Bc4 {[%clk 0:02:57]}  O-O {[%clk 0:02:57]} 9. O-O {[%clk 0:02:56]}  b5 {[%clk 0:02:57]} 10. Bd5 {[%clk 0:02:53]}  Nxd5 {[%clk 0:02:57]} 11. Nxd5 {[%clk 0:02:54]}  Nd7 {[%clk 0:02:49]} 12. a4 {[%clk 0:02:53]}  Bb7 {[%clk 0:02:48]} 13. axb5 {[%clk 0:02:52]}  axb5 {[%clk 0:02:49]} 14. Rxa8 {[%clk 0:02:52]}  Bxa8 {[%clk 0:02:48]} 15. Qd3 {[%clk 0:02:53]}  Nf6 {[%clk 0:02:38]} 16. Nd2 {[%clk 0:02:39]}  Nxd5 {[%clk 0:02:33]} 17. exd5 {[%clk 0:02:40]}  Qd7 {[%clk 0:02:31]} 18. Ra1 {[%clk 0:02:35]}  f5 {[%clk 0:02:28]} 19. Ra7 {[%clk 0:02:32]}  Qe8 {[%clk 0:02:26]} 20. f3 {[%clk 0:02:27]}  Bh4 {[%clk 0:02:16]} 21. b3 {[%clk 0:02:09]}  Qb8 {[%clk 0:02:03]} 22. Ra5 {[%clk 0:01:55]}  f4 {[%clk 0:01:59]} 23. Rxb5 {[%clk 0:01:55]}  Qc8 {[%clk 0:01:44]} 24. Bf2 {[%clk 0:01:53]}  Be7 {[%clk 0:01:33]} 25. Ne4 {[%clk 0:01:50]}  Qa6 {[%clk 0:01:31]} 26. c4 {[%clk 0:01:43]}  Qa1+ {[%clk 0:01:29]} 27. Qf1 {[%clk 0:01:43]}  Qb2 {[%clk 0:01:22]} 28. h3 {[%clk 0:01:42]}  Rc8 {[%clk 0:00:54]} 29. Qe1 {[%clk 0:01:37]}  Qa3 {[%clk 0:00:51]} 30. Bh4 {[%clk 0:01:33]}  Bf8 {[%clk 0:00:47]} 31. Ng5 {[%clk 0:01:19]}  Rc5 {[%clk 0:00:23]} 32. Qe4 {[%clk 0:01:03]}  g6 {[%clk 0:00:16]} 33. Rb8 {[%clk 0:00:53]}  Qa7 {[%clk 0:00:14]} 34. Rxf8+ {[%clk 0:00:51]}  Kxf8 {[%clk 0:00:14]} 35. Ne6+ {[%clk 0:00:39]}  Kf7 {[%clk 0:00:14]} 36. Nxc5 {[%clk 0:00:40]}  Qxc5+ {[%clk 0:00:15]} 37. Bf2 {[%clk 0:00:40]}  Qb4 {[%clk 0:00:15]} 38. Qb1 {[%clk 0:00:40]}  Bb7 {[%clk 0:00:14]} 39. Qa2 {[%clk 0:00:40]}  Kg8 {[%clk 0:00:08]} 40. Qa7 {[%clk 0:00:37]}  Qxb3 {[%clk 0:00:08]} 41. Qb8+ {[%clk 0:00:37]}  Kg7 {[%clk 0:00:07]} 42. Qxd6 {[%clk 0:00:36]}  Qxc4 {[%clk 0:00:06]} 43. Qe7+ {[%clk 0:00:36]}  Kh6 {[%clk 0:00:06]} 44. Qxb7 {[%clk 0:00:36]}  Qc1+ {[%clk 0:00:05]} 45. Kh2 {[%clk 0:00:36]}  e4 {[%clk 0:00:05]} 46. Qe7 {[%clk 0:00:34]}  e3 {[%clk 0:00:00]} 47. Bh4 {[%clk 0:00:34]} 1-0


[Site "https://www.chess.com"]